bitfinex-derivatives/quotes_ETHF0:USTF0_20250130
["timestamp","ask_amount","ask_price","bid_price","bid_amount"]
[1738225640434,0.62645,3192.4,3192.3,0.97827268]
[1738225642741,0.62645,3192.4,3192.3,0.00469403]
[1738225644840,0.62645,3192.4,3192.3,0.00330829]
[1738225645242,0.62645,3192.4,3192.3,0.62977829]
[1738225650048,0.62645,3192.4,3192.3,0.00330829]
[1738225650346,0.62649,3192.3,3192.2,0.62648]
[1738225651250,0.62649,3192.2,3192.1,1.66921]
[1738225655852,0.62653,3192.0,3191.9,3.89856224]
[1738225658554,0.62653,3192.0,3191.9,3.36426224]
[1738225660056,1.17303,3192.1,3192.0,0.62653]
[1738225660257,0.62653,3192.1,3192.0,0.62653]
[1738225660759,0.62648,3192.4,3192.3,0.62645]
[1738225661055,0.62649,3192.3,3192.2,0.62648]
[1738225663256,0.62649,3192.3,3192.2,3.35950821]
[1738225669666,1.17184,3192.5,3192.4,0.62645]
[1738225669863,0.62643,3192.5,3192.4,0.42994258]
[1738225670764,3.83891403,3192.6,3192.5,0.62643]
[1738225670965,3.83891403,3192.6,3192.5,3.35945821]
[1738225678078,3.83890403,3192.6,3192.5,3.35945821]
[1738225680380,3.83890403,3192.6,3192.5,2.73302821]
[1738225680580,3.83890403,3192.6,3192.3,1.0638]
[1738225680581,0.62643,3192.5,3192.4,0.62644]
[1738225680782,1.13043,3192.5,3192.4,0.62644]
[1738225680977,0.504,3192.5,3192.2,2.73302821]
[1738225681278,0.62647,3192.3,3192.2,3.35950821]
[1738225683276,0.62644,3192.5,3192.4,0.62643]
[1738225683476,0.00469403,3192.6,3192.5,0.62643]
[1738225683787,0.00469403,3192.6,3192.5,4.39625821]
[1738225689185,3.2078,3193.1,3192.5,3.76982821]
[1738225689389,3.2078,3193.1,3193.0,0.62633]
[1738225689586,3.83411,3193.1,3193.0,0.62633]
[1738225689893,1.15292,3193.2,3193.1,0.62631]
[1738225690892,0.5266,3193.2,3193.1,0.62631]
[1738225691089,1.69056,3193.4,3193.3,0.62627]
[1738225691291,2.21716,3193.4,3193.3,0.62627]
[1738225693798,0.62634,3193.1,3193.0,0.62631]
[1738225694398,1.56569,3193.3,3192.8,3.2078]
[1738225694601,0.62635,3192.9,3192.8,3.83416]
[1738225695000,1.68545,3192.9,3192.8,3.83416]
[1738225695605,0.5043,3193.0,3192.8,5.94082821]
[1738225695901,0.62629,3193.3,3193.2,0.62627]
[1738225697706,1.5634,3193.4,3192.9,0.499]
[1738225697903,0.62633,3193.2,3193.1,0.6263]
[1738225699203,0.62629,3193.3,3193.2,0.62627]
[1738225699901,2.18967,3193.4,3193.3,0.62627]
[1738225700905,0.00469403,3193.5,3193.4,0.62625]
[1738225701100,3.2078,3194.8,3194.7,0.626]
[1738225701295,1.0668,3195.0,3194.7,3.2078]
[1738225701605,1.0668,3195.0,3194.9,0.62596]
[1738225702200,0.5228,3195.0,3194.9,0.62596]
[1738225702703,0.5228,3195.0,3194.9,3.35898821]
[1738225703907,0.5228,3195.0,3194.9,0.62596]
[1738225704611,1.14874,3195.0,3194.9,0.62596]
[1738225704909,0.62598,3194.9,3194.8,0.62597]
[1738225705603,1.14875,3195.0,3194.7,3.2078]
[1738225705803,0.5228,3195.0,3194.7,3.2078]
[1738225706004,0.62597,3194.9,3194.8,0.62597]
[1738225706406,0.62598,3194.8,3194.7,3.83379]
[1738225706600,0.62598,3194.8,3194.7,3.2078]
[1738225706798,0.62599,3194.8,3194.7,0.626]
[1738225707098,0.626,3194.7,3194.6,0.00469403]
[1738225707303,0.626,3194.7,3194.4,0.62606]
[1738225707304,0.62605,3194.5,3194.4,0.62606]
[1738225707701,0.62609,3194.3,3194.1,0.62612]
[1738225707910,0.5204,3194.2,3194.1,0.62612]
[1738225709403,1.1465,3194.2,3194.1,0.62612]
[1738225709602,0.5204,3194.2,3194.1,0.62612]
[1738225725714,0.5204,3194.2,3193.9,0.5413]
[1738225725910,0.62614,3194.1,3194.0,0.62612]
[1738225726120,1.045,3194.1,3193.8,0.00469403]
[1738225726321,0.62616,3193.9,3193.8,0.00469403]
[1738225726513,3.83396,3193.9,3193.8,0.00469403]
[1738225727720,3.83396,3193.9,3193.8,0.63087403]
[1738225728627,3.83396,3193.9,3193.8,0.00469403]
[1738225729524,3.83396,3193.9,3193.8,0.00324636]
[1738225730527,3.83396,3193.9,3193.8,0.62942636]
[1738225732219,3.83396,3193.9,3193.8,0.00324636]
[1738225733327,3.83396,3193.9,3193.8,0.62942636]
[1738225734624,3.2078,3193.9,3193.8,0.62942636]
[1738225735323,3.83396,3193.9,3193.8,0.62942636]
[1738225737026,3.2078,3193.9,3193.8,0.62942636]
[1738225737228,3.83396,3193.9,3193.8,0.62942636]
[1738225739628,3.2078,3193.9,3193.8,0.62942636]
[1738225741320,3.2078,3193.9,3193.8,1.13912636]
[1738225744432,3.83396,3193.9,3193.8,0.62942636]
[1738225748625,3.83396,3193.9,3193.8,0.00324636]
[1738225748828,3.83396,3193.9,3193.8,0.62942636]
[1738225751133,3.83396,3193.9,3193.8,0.00324636]
[1738225751636,3.83396,3193.9,3193.8,0.00224543]
[1738225752736,3.83396,3193.9,3193.8,0.00144543]
[1738225759142,3.83396,3193.9,3193.8,0.00064543]
[1738225759548,0.62622,3193.6,3193.5,0.62623]
[1738225767958,0.62627,3193.4,3193.3,0.62624]
[1738225768155,0.62627,3193.4,3193.2,1.04369403]
[1738225768156,2.64046,3193.8,3193.2,1.04369403]
[1738225768342,0.62626,3193.5,3193.4,0.62622]
[1738225769853,0.00469403,3193.7,3193.2,1.04369403]
[1738225770154,0.63089403,3193.7,3193.6,0.62622]
[1738225770453,0.00469403,3193.7,3193.6,0.62622]
[1738225790470,3.2078,3194.3,3194.2,0.6261]
[1738225790680,3.2078,3194.3,3194.2,3.35912821]
[1738225791577,3.2078,3194.3,3194.2,4.42012821]
[1738225793278,0.49889403,3194.6,3194.5,0.62604]
[1738225793579,0.49889403,3194.6,3194.5,3.35906821]
[1738225794475,0.00469403,3194.6,3194.5,3.35906821]
[1738225800586,0.51099403,3194.6,3194.5,3.35906821]
[1738225808695,0.51099403,3194.6,3194.5,1.92022274]
[1738225810891,0.00469403,3194.6,3194.5,1.92022274]
[1738225811278,0.00469403,3194.6,3194.5,2.46212274]
[1738225812583,1.0733,3195.1,3194.5,3.27494243]
[1738225812789,1.0733,3195.1,3194.9,0.62596]
[1738225812790,0.5466,3195.0,3194.9,0.62596]
[1738225813488,0.5466,3195.0,3194.9,1.12396]
[1738225813693,0.2922,3195.3,3195.2,0.6259]
[1738225813893,0.29689403,3195.3,3195.2,3.35894243]
[1738225815895,0.29689403,3195.3,3195.2,6.56674243]
[1738225816588,0.92277403,3195.3,3195.2,0.6259]
[1738225816786,3.50469403,3195.3,3194.9,0.00469403]
[1738225816993,0.62594,3195.0,3194.9,0.00469403]
[1738225817296,0.62594,3195.0,3194.9,0.00324809]
[1738225817493,0.62594,3195.0,3194.9,0.62920809]
[1738225817689,3.50469403,3195.3,3194.9,0.00324809]
[1738225817887,0.6259,3195.2,3195.1,0.62591]
[1738225818084,0.62593,3195.1,3195.0,0.62593]
[1738225818393,0.535,3195.1,3195.0,0.62593]
[1738225819202,3.50469403,3195.3,3194.9,2.73629052]
[1738225819396,3.50469403,3195.3,3195.2,3.35894243]
[1738225820591,4.13057403,3195.3,3194.9,0.00324809]
[1738225820894,4.13057403,3195.3,3195.2,0.6259]
[1738225821192,4.13057403,3195.3,3195.1,0.62591]
[1738225821193,0.62592,3195.2,3195.1,0.62591]
[1738225821395,0.62592,3195.2,3194.9,0.00324809]
[1738225821396,0.62594,3195.0,3194.9,0.00324809]
[1738225822097,0.62602,3194.6,3194.5,0.62604]
[1738225822394,3.83382,3194.6,3194.5,0.62604]
[1738225822807,3.2078,3194.6,3194.2,2.73304243]
[1738225823002,1.5785,3194.5,3194.4,0.62604]
[1738225823295,1.5785,3194.5,3194.2,2.73304243]
[1738225823502,1.5785,3194.5,3194.3,0.62607]
[1738225823503,0.62606,3194.4,3194.3,0.62607]
[1738225824002,1.5785,3194.5,3194.1,0.00469403]
[1738225824296,1.5785,3194.5,3194.2,0.62609]
[1738225824297,0.62609,3194.3,3194.2,0.62609]
[1738225824499,0.6261,3194.2,3194.1,0.63080403]
[1738225824998,0.62609,3194.3,3194.2,0.62609]
[1738225825395,0.62609,3194.3,3193.9,2.30236518]
[1738225825803,1.5785,3194.5,3193.9,2.30236518]
[1738225825998,0.62611,3194.2,3194.1,0.62611]
[1738225826204,1.5785,3194.5,3193.9,2.30236518]
[1738225826394,0.62608,3194.3,3194.2,0.62608]
[1738225826793,0.62608,3194.3,3194.2,0.45170351]
[1738225828902,1.5785,3194.5,3193.9,2.30705921]
[1738225829105,0.62611,3194.2,3194.1,0.6261]
[1738225830100,0.62609,3194.3,3194.2,0.62608]
[1738225834712,0.62612,3194.2,3194.1,0.6261]
[1738225835010,3.83392,3194.2,3194.1,0.6261]
[1738225836908,0.62614,3194.1,3194.0,0.62612]
[1738225839913,3.83391,3194.2,3194.1,0.62612]
[1738225841014,3.2078,3194.2,3193.9,0.00469403]
[1738225841316,0.62614,3194.1,3194.0,0.62612]
[1738225844018,3.83391,3194.2,3194.1,0.62612]
[1738225851123,0.62611,3194.2,3194.1,0.62612]
[1738225851424,3.83391,3194.2,3194.1,0.62612]
[1738225851622,4.36181,3194.2,3194.1,0.62612]
[1738225853316,3.7357,3194.2,3194.1,0.62612]
[1738225853917,3.2078,3194.2,3194.1,0.62612]
[1738225856923,3.2078,3194.2,3194.0,0.52139765]
[1738225857122,3.2078,3194.2,3194.1,1.92093619]
[1738225858624,3.2078,3194.2,3194.1,3.36051339]
[1738225859628,3.2078,3194.2,3194.1,0.62612]
[1738225864932,3.2078,3194.2,3194.1,0.45527009]
[1738225867141,3.2078,3194.2,3193.9,1.04669403]
[1738225867328,0.62614,3194.0,3193.9,0.00469403]
[1738225867833,1.12014,3194.0,3193.9,0.00469403]
[1738225868935,0.62622,3193.6,3193.5,1.12343]
[1738225869244,0.62622,3193.6,3193.5,0.4972]
[1738225869450,3.2078,3193.8,3193.2,0.5177]
[1738225869653,0.62627,3193.3,3193.2,1.14397]
[1738225870250,1.0511,3193.5,3193.4,0.62626]
[1738225870555,0.00469403,3193.6,3193.5,0.62624]
[1738225871255,0.63091403,3193.6,3193.5,0.62624]
[1738225872251,0.63091403,3193.6,3193.4,2.73439339]
[1738225872252,0.00469403,3193.6,3193.2,0.5177]
[1738225872444,0.62626,3193.5,3193.4,0.62624]
[1738225876048,0.00469403,3193.6,3193.2,0.5177]
[1738225876250,0.62627,3193.3,3193.2,1.14398]
[1738225877353,0.62627,3193.3,3193.2,0.5177]
[1738225877554,0.62627,3193.3,3193.2,1.14399]
[1738225878450,0.62627,3193.3,3193.2,0.5177]
[1738225878653,1.13607,3193.3,3193.2,1.14399]
[1738225880750,1.13567,3193.4,3193.3,0.62627]
[1738225881751,0.00469403,3193.6,3193.5,0.62624]
[1738225881950,0.00469403,3193.6,3193.5,3.36063339]
[1738225885459,0.5183,3194.3,3194.1,0.62612]
[1738225885764,1.14438,3194.3,3194.2,1.6771]
[1738225886463,1.14438,3194.3,3194.2,1.051]
[1738225886664,0.62613,3194.1,3194.0,0.62614]
[1738225887863,0.5067,3194.2,3193.9,3.7118]
[1738225888065,1.1328,3194.2,3194.1,0.62612]
[1738225888262,1.1328,3194.2,3194.1,0.44673296]
[1738225889665,0.5067,3194.2,3194.1,0.44673296]
[1738225889855,0.5067,3194.2,3193.9,3.7118]
[1738225889856,1.14439,3194.3,3194.2,0.6261]
[1738225891772,0.5183,3194.3,3193.9,3.7118]
[1738225891965,0.62611,3194.2,3194.1,0.6261]
[1738225892958,0.5183,3194.3,3193.9,3.7118]
[1738225893160,0.62616,3194.0,3193.9,0.62615]
[1738225893470,0.62616,3193.9,3193.8,3.36055339]
[1738225893673,3.7475,3194.4,3193.8,2.73439339]
[1738225893874,4.91407,3194.4,3194.3,0.62608]
[1738225894170,0.5405,3194.4,3194.3,0.62608]
[1738225894366,0.5405,3194.4,3194.3,1.65038]
[1738225894768,1.16656,3194.4,3194.3,1.65038]
[1738225894964,0.5405,3194.4,3194.3,1.65038]
[1738225895164,0.00469403,3194.6,3194.5,0.62604]
[1738225895477,0.00469403,3194.6,3194.5,3.36043339]
[1738225896765,0.63071403,3194.6,3194.5,3.36043339]
[1738225896970,1.63601403,3194.6,3194.5,0.62604]
[1738225897269,1.00999403,3194.6,3194.5,0.62604]
[1738225897973,0.00469403,3194.6,3194.5,3.36043339]
[1738225902867,3.5,3195.3,3194.5,5.94219339]
[1738225903077,0.2922,3195.3,3195.2,0.6259]
[1738225903471,0.5418,3195.8,3195.7,0.6258]
[1738225905068,1.16758,3195.8,3195.7,0.6258]
[1738225905265,0.5418,3195.8,3195.7,0.6258]
[1738225906774,3.21249403,3196.1,3196.0,0.62575]
[1738225906976,3.21249403,3196.1,3196.0,3.36014339]
[1738225909175,0.00469403,3196.1,3196.0,3.36014339]
[1738225917480,0.63042403,3196.1,3196.0,3.36014339]
[1738225918673,0.00469403,3196.1,3195.7,2.73439339]
[1738225918886,0.62577,3195.9,3195.8,0.62576]
[1738225919081,1.67496,3196.0,3195.9,0.62576]
[1738225919478,0.62578,3195.8,3195.7,3.36018339]
[1738225919772,0.62578,3195.9,3195.8,0.62578]
[1738225920383,0.62581,3195.7,3195.6,0.62582]
[1738225921384,0.62584,3195.5,3195.4,3.36493742]
[1738225921683,0.62584,3195.5,3195.4,0.00469403]
[1738225922185,0.62596,3194.9,3194.8,2.73439339]
[1738225922385,3.2078,3195.0,3194.7,0.626]
[1738225922589,1.12438,3194.8,3194.7,0.626]
[1738225922786,0.626,3194.7,3194.6,0.62601]
[1738225922983,0.62602,3194.6,3194.5,2.73439339]
[1738225923288,0.5278,3194.7,3194.5,2.73439339]
[1738225923478,3.83375,3195.0,3194.9,0.62596]
[1738225924187,3.2078,3195.0,3194.5,2.73439339]
[1738225924393,3.2078,3195.0,3194.2,3.21249403]
[1738225924394,0.62607,3194.4,3194.3,0.62607]
[1738225924588,0.62608,3194.3,3194.2,3.36518742]
[1738225924789,1.65028,3194.3,3194.2,3.36518742]
[1738225924988,1.0242,3194.3,3194.2,3.36518742]
[1738225925288,0.5153,3194.3,3194.2,3.36518742]
[1738225925895,0.5019,3194.5,3194.4,0.62606]
[1738225926090,1.12796,3194.5,3194.2,2.73908742]
[1738225926295,1.12796,3194.5,3194.3,0.62607]
[1738225926494,1.12796,3194.5,3194.2,2.73908742]
[1738225926495,0.62608,3194.3,3194.2,2.73908742]
[1738225926695,0.62608,3194.3,3194.2,3.36518742]
[1738225927492,0.62608,3194.3,3194.2,2.73908742]
[1738225927796,0.62608,3194.3,3194.2,0.00469403]
[1738225929198,0.62608,3194.3,3193.8,3.2078]
[1738225929199,0.62616,3193.9,3193.8,3.2078]
[1738225929699,0.6262,3193.7,3193.6,3.36060339]
[1738225931196,0.62618,3193.8,3193.7,0.62618]
[1738225931593,1.15367,3193.9,3193.8,0.62618]
[1738225931893,0.62618,3193.8,3193.7,0.62618]
[1738225932098,0.62618,3193.8,3193.6,3.36059339]
[1738225932300,1.12928,3193.8,3193.7,0.6262]
[1738225932503,0.5031,3193.8,3193.7,0.6262]
[1738225932693,0.5031,3193.8,3193.6,2.73439339]
[1738225933201,0.5031,3193.8,3193.7,0.6262]
[1738225933903,0.5031,3193.8,3193.6,2.73439339]
[1738225934200,0.6262,3193.7,3193.6,3.36061339]
[1738225934400,0.6262,3193.7,3193.6,3.36059339]
[1738225935904,1.12929,3193.8,3193.7,0.6262]
[1738225936397,0.00469403,3194.0,3193.6,2.73439339]
[1738225936697,0.00469403,3194.0,3193.9,0.62616]
[1738225936894,0.63083403,3194.0,3193.9,3.36055339]
[1738225937294,0.63083403,3194.0,3193.9,0.62616]
[1738225937698,0.00469403,3194.0,3193.9,0.62616]
[1738225940099,0.00469403,3194.0,3193.9,3.36055339]
[1738225945206,0.00469403,3194.0,3193.7,0.5066]
[1738225945406,0.00469403,3194.0,3193.9,3.36055339]
[1738225946911,0.00469403,3194.0,3193.9,6.35955339]
[1738225947409,0.00469403,3194.0,3193.9,6.86005339]
[1738225947603,0.5339,3194.8,3193.9,8.23489339]
[1738225947809,3.2078,3195.0,3194.9,0.62596]
[1738225948205,0.4994,3195.4,3194.8,2.73439339]
[1738225948508,3.7542,3195.5,3194.8,2.73439339]
[1738225948706,0.4994,3195.3,3194.8,2.73439339]
[1738225948910,0.62594,3195.0,3194.9,0.62595]
[1738225949206,0.4994,3195.3,3194.8,2.73439339]
[1738225949711,1.12529,3195.3,3195.2,0.6259]
[1738225950011,1.12529,3195.3,3195.1,0.62591]
[1738225950207,0.4994,3195.3,3195.1,2.73439339]
[1738225950406,3.75889403,3195.5,3194.9,0.00469403]
[1738225950703,0.62593,3195.1,3194.9,0.63064403]
[1738225950911,0.62594,3195.0,3194.9,0.00469403]
[1738225951106,1.67564,3195.0,3194.9,0.00469403]
[1738225952504,1.67564,3195.0,3194.9,0.00337118]
[1738225955519,3.78409339,3195.0,3194.4,3.2078]
[1738225955812,0.62604,3194.5,3194.4,3.83386]
[1738225957501,2.09875,3194.9,3194.1,0.00469403]
[1738225957502,3.2078,3194.6,3194.3,0.62607]
[1738225957707,3.2078,3194.6,3194.1,0.00469403]
[1738225957911,0.5394,3194.5,3194.1,0.00469403]
[1738225958211,1.16237,3194.4,3194.3,0.62607]
[1738225958912,0.5363,3194.4,3194.3,0.62607]
[1738225959313,1.16236,3194.4,3194.3,0.62607]
[1738225959515,0.5363,3194.4,3194.3,0.62607]
[1738225960016,1.16236,3194.4,3194.3,0.62607]
[1738225961116,0.6261,3194.3,3194.2,0.62609]
[1738225961311,1.122,3194.3,3194.2,0.62609]
[1738225962115,0.6261,3194.2,3194.1,0.63080403]
[1738225962816,0.6261,3194.2,3194.1,0.00469403]
[1738225963007,0.6261,3194.2,3194.1,0.63081403]
[1738225965107,0.6261,3194.2,3193.8,3.83396]
[1738225965108,0.62616,3193.9,3193.8,3.83396]
[1738225966416,0.62616,3193.9,3193.8,0.62616]
[1738225967016,0.6262,3193.8,3193.7,0.62618]
[1738225967213,1.1332,3193.8,3193.7,0.62618]
[1738225968217,0.507,3193.8,3193.6,2.73439339]
[1738225968617,1.13319,3193.8,3193.7,0.6262]
[1738225969222,0.507,3193.8,3193.7,0.6262]
[1738225970217,0.62617,3193.9,3193.8,0.62618]
[1738225972625,0.5113,3194.0,3193.9,0.62616]
[1738225973220,1.13744,3194.0,3193.9,0.62616]
[1738225974522,0.5113,3194.0,3193.9,0.62616]
[1738225974922,3.2078,3194.2,3194.1,0.62612]
[1738225975913,3.8339,3194.2,3194.1,0.62612]
[1738225976115,3.2078,3194.2,3194.1,0.62612]
[1738225976327,3.8339,3194.2,3194.1,0.62612]
[1738225980324,3.2078,3194.2,3193.8,0.5318]
[1738225980627,0.62616,3193.9,3193.8,1.15798]
[1738225981025,0.62616,3193.9,3193.8,0.62618]
[1738225981534,0.6262,3193.8,3193.7,0.62618]
[1738225981826,1.1518,3193.8,3193.7,0.62618]
[1738225982334,0.6262,3193.7,3193.6,3.89020339]
[1738225983330,0.5256,3193.8,3193.5,0.00314667]
[1738225983531,0.62622,3193.6,3193.5,0.00314667]
[1738225984633,0.62622,3193.6,3193.5,0.00225951]
[1738225986033,0.62634,3193.0,3192.9,0.62635]
[1738225986232,0.62636,3192.9,3192.8,3.83417]
[1738225987942,0.4942,3193.1,3192.8,3.2078]
[1738225988142,0.62635,3193.0,3192.9,0.62634]
[1738225988441,1.12055,3193.1,3193.0,0.62635]
[1738225989440,0.4942,3193.1,3192.4,2.999]
[1738225989639,3.2078,3192.6,3192.1,1.0541]
[1738225989943,1.15456,3192.5,3192.4,0.62647]
[1738225991247,0.62648,3192.4,3192.3,0.62648]
[1738225991639,1.13788,3192.4,3192.3,0.62648]
[1738225992344,0.5114,3192.4,3192.3,0.62648]
[1738225994142,1.13791,3192.4,3192.3,0.62648]
[1738225994545,0.62655,3192.3,3192.1,1.0541]
[1738225994848,0.5114,3192.4,3191.8,4.28709339]
[1738225995048,0.62653,3192.3,3191.8,4.28709339]
[1738225995342,0.62656,3192.2,3192.1,0.62657]
[1738225996044,0.5114,3192.4,3191.8,4.28709339]
[1738225996245,0.62657,3192.2,3192.1,0.62657]
[1738225996945,0.5114,3192.4,3191.8,4.28709339]
[1738225997139,0.5114,3192.4,3191.8,4.40131339]
[1738225997140,0.62661,3191.9,3191.8,4.40131339]
[1738225997342,3.2078,3192.1,3191.5,2.73439339]
[1738225997544,0.5044,3191.8,3191.7,0.62664]
[1738225997744,1.13103,3191.8,3191.7,0.62664]
[1738225998051,1.13103,3191.8,3191.7,0.62665]
[1738225998245,0.5044,3191.8,3191.7,0.62665]
[1738225998642,1.13103,3191.8,3191.7,0.62665]
[1738225999042,0.62667,3191.7,3191.6,0.62666]
[1738225999246,0.62666,3191.7,3191.6,0.62667]
[1738225999556,4.2795,3191.7,3191.1,1.0548]
[1738225999847,0.62674,3191.3,3191.2,0.62674]
[1738226000053,0.62676,3191.2,3191.1,0.62676]
[1738226000349,0.5456,3191.2,3191.1,0.62676]
[1738226000650,3.2078,3191.3,3191.2,0.62675]
[1738226000851,3.2078,3191.3,3191.2,3.36114339]
[1738226007350,3.2078,3191.8,3191.2,2.73439339]
[1738226007556,3.2078,3191.8,3191.7,0.62665]
[1738226009753,3.83443,3191.8,3191.7,0.62665]
[1738226010251,3.2078,3191.8,3191.3,1.0434]
[1738226010454,0.62671,3191.5,3191.4,0.62668]
[1738226010851,0.62677,3191.2,3191.1,0.62675]
[1738226011058,0.62677,3191.2,3191.0,2.73439339]
[1738226011059,0.6268,3191.1,3191.0,0.62678]
[1738226012058,0.5106,3191.3,3190.7,2.73439339]
[1738226012059,0.62681,3191.0,3190.9,0.62679]
[1738226012963,3.2078,3191.2,3190.7,2.73439339]
[1738226013358,3.2078,3191.2,3191.1,0.62677]
[1738226013756,3.83455,3191.2,3191.1,0.62677]
[1738226017049,3.2078,3191.2,3191.1,1.16947]
[1738226017457,3.2078,3191.6,3191.1,0.5427]
[1738226017660,3.2078,3191.6,3191.5,3.36108339]
[1738226022566,3.83447,3191.6,3191.5,3.36108339]
[1738226023266,3.2078,3191.6,3191.5,3.36108339]
[1738226025065,3.2078,3191.6,3191.5,2.34343455]
[1738226026458,0.62666,3191.7,3191.6,0.62667]
[1738226026661,3.2078,3191.7,3191.2,3.27719339]
[1738226026866,0.62673,3191.4,3191.3,0.6267]
[1738226027661,3.2078,3191.7,3190.9,7.79809339]
[1738226027859,4.88946,3191.3,3191.2,0.62674]
[1738226028065,0.62679,3191.1,3191.0,0.62677]
[1738226029064,0.5453,3191.2,3191.0,0.62677]
[1738226029265,1.17205,3191.2,3191.1,0.62677]
[1738226029969,0.5453,3191.2,3190.9,2.73439339]
[1738226030159,0.62679,3191.1,3191.0,0.62677]
[1738226030476,0.62681,3191.0,3190.9,0.62679]
[1738226031567,0.62679,3191.1,3191.0,0.62677]
[1738226031974,0.5453,3191.2,3190.8,3.2078]
[1738226032175,0.6268,3191.0,3190.9,0.62678]
[1738226033065,0.5453,3191.2,3190.6,3.23209339]
[1738226033269,0.5453,3191.2,3191.1,0.62677]
[1738226033865,4.2627,3191.3,3190.9,4.30141339]
[1738226034076,4.2627,3191.3,3191.2,0.62675]
[1738226036078,0.62679,3191.1,3191.0,0.62676]
[1738226037471,0.62679,3191.1,3191.0,0.45323987]
[1738226038179,4.2627,3191.3,3190.7,1.56711]
[1738226038382,0.62676,3191.2,3191.1,0.62675]
[1738226041177,4.88944,3191.3,3190.9,0.4987]
[1738226041373,4.88944,3191.3,3191.2,0.62675]
[1738226043476,4.35314,3191.3,3191.2,0.62675]
[1738226044583,4.35314,3191.3,3191.2,0.46941052]
[1738226048378,3.7264,3191.3,3191.2,0.46941052]
[1738226048589,3.2078,3191.3,3191.2,3.20380391]
[1738226049294,3.7098,3191.7,3191.2,2.73439339]
[1738226049487,3.02678065,3191.7,3191.6,3.36106339]
[1738226051085,1.14115403,3192.2,3192.1,0.62657]
[1738226051482,0.00469403,3192.2,3192.1,0.62657]
[1738226052787,0.00469403,3192.2,3192.1,0.4560712]
[1738226056285,3.2078,3192.8,3192.0,0.5163]
[1738226056480,3.2078,3192.8,3192.7,0.62645]
[1738226059892,0.62649,3192.5,3192.4,0.63119403]
[1738226060282,0.496,3192.7,3192.4,0.00469403]
[1738226060482,0.62649,3192.6,3192.5,0.62649]
[1738226062492,0.496,3192.7,3192.4,0.00469403]
[1738226062784,0.496,3192.7,3192.6,0.62647]
[1738226064797,1.12245,3192.7,3192.6,0.62647]
[1738226064987,0.496,3192.7,3192.4,0.00469403]
[1738226065294,0.62649,3192.5,3192.4,0.00469403]
[1738226065685,0.62657,3192.1,3192.0,0.62658]
[1738226065885,0.62665,3191.8,3191.7,0.62663]
[1738226066093,0.62668,3191.7,3191.6,0.62665]
[1738226066397,1.17248,3191.7,3191.6,0.62665]
[1738226066599,1.17248,3191.7,3191.3,1.0473]
[1738226066600,0.62669,3191.6,3191.5,0.62668]
[1738226066888,1.17247,3191.7,3191.6,0.62667]
[1738226067094,0.5458,3191.7,3191.6,0.62667]
[1738226068592,1.17245,3191.7,3191.6,0.62667]
[1738226068894,0.5458,3191.7,3191.6,0.62667]
[1738226070089,1.17245,3191.7,3191.6,0.62667]
[1738226071490,0.5458,3191.7,3191.6,0.62667]
[1738226071695,0.5315,3191.8,3191.7,0.62665]
[1738226072996,3.2078,3191.9,3191.8,0.62663]
[1738226073689,3.2078,3191.9,3191.8,3.36102339]
[1738226078702,0.5453,3192.1,3192.0,0.62659]
[1738226080899,1.17187,3192.1,3192.0,0.62659]
[1738226082007,0.62661,3192.0,3191.9,0.6266]
[1738226084108,4.3797,3192.1,3192.0,0.62659]
[1738226088807,0.62662,3192.0,3191.9,0.6266]
[1738226089006,1.14292,3192.0,3191.9,0.45876906]
[1738226090913,3.7531,3192.1,3192.0,0.62659]
[1738226091210,3.2078,3192.1,3192.0,0.62659]
[1738226091603,3.2078,3192.7,3192.6,0.62647]
[1738226091910,3.2078,3192.7,3192.6,3.36086339]
[1738226098708,3.83425,3192.7,3192.6,0.62647]
[1738226099506,3.2078,3192.7,3192.6,0.62647]
[1738226100318,3.83425,3192.7,3192.6,0.62647]
[1738226100614,3.2078,3192.7,3192.1,0.5288]
[1738226100814,0.6266,3192.0,3191.9,0.62659]
[1738226101009,0.62665,3191.8,3191.7,0.62664]
[1738226101209,3.2078,3191.8,3191.7,0.62664]
[1738226101711,3.83443,3191.8,3191.7,0.62664]
[1738226103113,3.2078,3191.8,3191.7,0.62664]
[1738226103827,3.2078,3191.8,3191.7,3.36103339]
[1738226109329,3.2078,3191.8,3191.7,0.62664]
[1738226109536,0.62666,3191.7,3191.6,0.62665]
[1738226109731,2.19906,3191.7,3191.6,0.62665]
[1738226110631,1.5724,3191.7,3191.6,0.62665]
[1738226114740,2.19905,3191.7,3191.6,0.62665]
[1738226118741,1.5724,3191.7,3190.9,1.56699]
[1738226118937,1.5724,3191.7,3191.2,0.62673]
[1738226118938,3.83454,3191.3,3191.2,0.62673]
[1738226119134,3.83454,3191.3,3190.8,3.2078]
[1738226119135,3.2078,3191.3,3190.8,3.2078]
[1738226119341,0.6268,3191.0,3190.9,0.62679]
[1738226119842,1.71228,3191.1,3191.0,0.62679]
[1738226120938,1.0855,3191.1,3190.8,3.2078]
[1738226121136,0.62684,3190.8,3190.7,0.62683]
[1738226122538,3.83463,3190.9,3190.8,0.62683]
[1738226125147,0.62687,3190.7,3190.6,0.62683]
[1738226126243,3.2078,3190.9,3190.2,2.999]
[1738226126244,5.94219339,3190.9,3190.2,2.999]
[1738226126444,0.62693,3190.4,3190.3,0.62691]
[1738226127039,1.0544,3190.5,3189.9,4.30186339]
[1738226127344,1.0544,3190.5,3190.1,0.62695]
[1738226127345,0.62697,3190.2,3190.1,0.62695]
[1738226127549,0.62694,3190.3,3190.2,0.62693]
[1738226127845,0.627,3190.0,3189.9,0.62699]
[1738226128042,0.627,3190.0,3189.8,0.62702]
[1738226128043,0.62698,3190.0,3189.8,0.62702]
[1738226128243,1.5595,3189.9,3189.6,6.23619339]
[1738226128446,0.62704,3189.7,3189.6,6.23619339]